bitfinex-derivatives/quotes_BTCF0:USTF0_20251025
["timestamp","ask_amount","ask_price","bid_price","bid_amount"]
[1761433219836,0.52128356,111690.0,111680.0,0.20371915]
[1761433222539,0.16048356,111690.0,111680.0,0.20371915]
[1761433222737,0.52128356,111690.0,111680.0,0.20371915]
[1761433223440,0.16048356,111690.0,111680.0,0.20371915]
[1761433223740,0.52128356,111690.0,111680.0,0.20371915]
[1761433224043,0.16048356,111690.0,111680.0,0.20371915]
[1761433224241,0.52128356,111690.0,111680.0,0.20371915]
[1761433224943,0.16048356,111690.0,111680.0,0.20371915]
[1761433225147,0.52128356,111690.0,111680.0,0.20371915]
[1761433230248,0.16048356,111690.0,111680.0,0.20371915]
[1761433230448,0.52128356,111690.0,111680.0,0.20371915]
[1761433231444,0.16048356,111690.0,111680.0,0.20371915]
[1761433231648,0.68007271,111690.0,111680.0,0.18163915]
[1761433231854,0.05879,111680.0,111660.0,0.38411]
[1761433232042,0.24176319,111670.0,111660.0,0.55186841]
[1761433232241,0.26361336,111670.0,111660.0,0.49589915]
[1761433232650,0.26361336,111670.0,111660.0,0.3138]
[1761433234453,0.26361336,111670.0,111650.0,0.87591915]
[1761433234648,0.05835,111660.0,111650.0,0.87591915]
[1761433234848,0.08020017,111660.0,111650.0,0.87591915]
[1761433236052,0.08020017,111660.0,111650.0,0.87791915]
[1761433236766,0.08020017,111660.0,111650.0,0.8869545]
[1761433238461,0.08020017,111660.0,111650.0,0.72816535]
[1761433238761,0.08020017,111660.0,111650.0,0.8869545]
[1761433239856,0.23898932,111660.0,111650.0,0.8869545]
[1761433241559,0.23898932,111660.0,111650.0,0.72816535]
[1761433241759,0.23898932,111660.0,111650.0,0.71913]
[1761433242161,0.23898932,111660.0,111650.0,0.87791915]
[1761433243466,0.23898932,111660.0,111650.0,0.88703335]
[1761433243858,0.23898932,111660.0,111650.0,0.52623335]
[1761433244757,0.59978932,111660.0,111650.0,0.52623335]
[1761433246771,0.44100017,111660.0,111650.0,0.3674442]
[1761433254677,0.08020017,111660.0,111650.0,0.3674442]
[1761433254878,0.44100017,111660.0,111650.0,0.3674442]
[1761433255372,0.44100017,111660.0,111650.0,0.35833]
[1761433256676,0.58223893,111660.0,111650.0,0.04453]
[1761433256866,0.62642297,111660.0,111650.0,0.002]
[1761433257269,0.94030297,111660.0,111650.0,0.002]
[1761433257975,0.97251258,111660.0,111650.0,0.002]
[1761433258180,0.94030297,111660.0,111650.0,0.002]
[1761433258373,0.61171258,111660.0,111650.0,0.002]
[1761433258572,0.97251258,111660.0,111650.0,0.002]
[1761433260481,0.94832854,111660.0,111650.0,0.002]
[1761433260671,0.94832854,111660.0,111650.0,0.02315]
[1761433261978,0.94832854,111660.0,111650.0,0.002]
[1761433264478,0.9572618,111660.0,111650.0,0.002]
[1761433265178,0.81602304,111660.0,111650.0,0.002]
[1761433265383,0.9572618,111660.0,111650.0,0.002]
[1761433266278,1.00560558,111660.0,111650.0,0.002]
[1761433266475,0.01357,111640.0,111630.0,0.35669935]
[1761433266682,0.58222893,111640.0,111630.0,0.35669935]
[1761433266979,0.58222893,111640.0,111630.0,0.36564537]
[1761433267575,0.44099017,111640.0,111630.0,0.36564537]
[1761433268180,0.60222893,111640.0,111630.0,0.33538935]
[1761433268482,0.05834,111620.0,111610.0,0.71746]
[1761433269271,0.05840433,111620.0,111610.0,0.71746]
[1761433269476,0.05840433,111620.0,111610.0,0.72720482]
[1761433269785,0.05840433,111620.0,111610.0,0.36640482]
[1761433271181,0.05840433,111620.0,111610.0,0.50764358]
[1761433272392,0.05840433,111620.0,111610.0,0.36640482]
[1761433272881,0.05840433,111620.0,111610.0,0.72720482]
[1761433273285,0.05840433,111620.0,111610.0,0.65248482]
[1761433273483,0.22182146,111620.0,111610.0,0.04374]
[1761433273679,0.0805827,111620.0,111610.0,0.04374]
[1761433274679,0.46553574,111620.0,111610.0,0.04374]
[1761433275380,0.4413827,111620.0,111610.0,0.04374]
[1761433277791,0.58262146,111620.0,111610.0,0.04374]
[1761433279685,0.58262146,111620.0,111610.0,0.02231]
[1761433279891,0.05834,111600.0,111590.0,0.35682]
[1761433280087,0.05834,111600.0,111590.0,0.85885876]
[1761433280289,0.05834,111600.0,111590.0,0.71762]
[1761433280891,0.05834,111600.0,111590.0,0.71862]
[1761433281491,0.05834,111600.0,111590.0,0.85985876]
[1761433282096,0.05834,111600.0,111590.0,0.86485876]
[1761433283492,0.05834,111600.0,111590.0,0.87372263]
[1761433285292,0.05834,111600.0,111590.0,1.47372263]
[1761433288300,0.05834,111600.0,111590.0,1.01840387]
[1761433288597,0.05834,111600.0,111590.0,0.73248387]
[1761433289402,0.05834,111600.0,111590.0,0.37168387]
[1761433293308,0.05834,111600.0,111590.0,0.37068387]
[1761433293500,0.08050882,111600.0,111590.0,0.37168387]
[1761433294108,0.08050882,111600.0,111590.0,0.36668387]
[1761433294305,0.08050882,111600.0,111590.0,0.36868387]
[1761433294710,0.08050882,111600.0,111590.0,0.72948387]
[1761433296510,0.02216882,111600.0,111590.0,0.87072263]
[1761433297308,0.04494882,111600.0,111590.0,0.87072263]
[1761433297609,0.06598882,111600.0,111590.0,0.72948387]
[1761433297909,0.06598882,111600.0,111590.0,0.87072263]
[1761433298210,0.06598882,111600.0,111590.0,0.96032623]
[1761433299803,0.07972882,111600.0,111590.0,0.96032623]
[1761433300508,0.07972882,111600.0,111590.0,0.87072263]
[1761433301004,0.07972882,111600.0,111590.0,0.50992263]
[1761433301209,0.07972882,111600.0,111590.0,0.87072263]
[1761433301702,0.07972882,111600.0,111590.0,1.47072263]
[1761433304013,0.07972882,111600.0,111590.0,1.10992263]
[1761433304314,0.07972882,111600.0,111590.0,1.47072263]
[1761433306112,0.07972882,111600.0,111590.0,1.10992263]
[1761433306312,0.07972882,111600.0,111590.0,1.47072263]
[1761433308714,0.07972882,111600.0,111590.0,1.48850636]
[1761433313317,0.07972882,111600.0,111590.0,1.57810996]
[1761433313915,0.07972882,111600.0,111590.0,1.21730996]
[1761433314121,0.07972882,111600.0,111590.0,1.57810996]
[1761433316021,0.06598882,111600.0,111590.0,1.57810996]
[1761433318226,0.06598882,111600.0,111590.0,1.93890996]
[1761433318615,0.02216882,111600.0,111590.0,1.49793245]
[1761433319025,0.11381698,111620.0,111610.0,0.04552]
[1761433319219,0.13607476,111620.0,111610.0,0.87942249]
[1761433319421,0.10386515,111620.0,111610.0,0.87942249]
[1761433320426,0.10686515,111620.0,111610.0,0.87942249]
[1761433322721,0.10686515,111620.0,111610.0,0.51862249]
[1761433323033,0.10686515,111620.0,111610.0,0.7204]
[1761433323230,0.10686515,111620.0,111610.0,0.51862249]
[1761433324429,0.10686515,111620.0,111610.0,0.87942249]
[1761433331843,0.10686515,111620.0,111610.0,0.51862249]
[1761433332142,0.10686515,111620.0,111610.0,0.87942249]
[1761433339149,0.10686515,111620.0,111610.0,0.51862249]
[1761433339337,0.10686515,111620.0,111610.0,0.87942249]
[1761433340148,0.10686515,111620.0,111610.0,0.51862249]
[1761433340348,0.10686515,111620.0,111610.0,0.87942249]
[1761433344745,0.10686515,111620.0,111610.0,0.51862249]
[1761433344951,0.10686515,111620.0,111610.0,0.87942249]
[1761433347451,0.13907476,111620.0,111610.0,0.87942249]
[1761433353252,0.13907476,111620.0,111610.0,0.51862249]
[1761433353454,0.13907476,111620.0,111610.0,0.87942249]
[1761433354155,0.13907476,111620.0,111610.0,0.51862249]
[1761433354354,0.13907476,111620.0,111610.0,0.87942249]
[1761433355155,0.13907476,111620.0,111610.0,0.51862249]
[1761433355355,0.13907476,111620.0,111610.0,0.87942249]
[1761433359256,0.13907476,111620.0,111610.0,0.51862249]
[1761433359461,0.13907476,111620.0,111610.0,0.87942249]
[1761433362460,0.13907476,111620.0,111610.0,0.7204]
[1761433362665,0.13907476,111620.0,111610.0,0.87942249]
[1761433363263,0.29809725,111620.0,111610.0,0.87942249]
[1761433363563,0.29809725,111620.0,111610.0,0.51862249]
[1761433364966,0.65889725,111620.0,111610.0,0.51862249]
[1761433365263,0.63474421,111620.0,111610.0,0.3596]
[1761433366364,0.63474421,111620.0,111610.0,0.51862249]
[1761433367070,0.63474421,111620.0,111610.0,0.3596]
[1761433367269,0.63474421,111620.0,111610.0,0.51862249]
[1761433369676,0.63474421,111620.0,111610.0,0.3596]
[1761433370680,0.61706332,111620.0,111610.0,0.3596]
[1761433372194,0.25626332,111620.0,111610.0,0.3596]
[1761433372378,0.61706332,111620.0,111610.0,0.3596]
[1761433376786,0.6412492,111620.0,111610.0,0.3596]
[1761433377589,0.2804492,111620.0,111610.0,0.3596]
[1761433378289,0.6412492,111620.0,111610.0,0.3596]
[1761433378489,0.61706332,111620.0,111610.0,0.3596]
[1761433379090,0.25626332,111620.0,111610.0,0.3596]
[1761433379386,0.61706332,111620.0,111610.0,0.3596]
[1761433382692,0.64124945,111620.0,111610.0,0.3596]
[1761433383292,0.61706332,111620.0,111610.0,0.3596]
[1761433385394,0.25626332,111620.0,111610.0,0.3596]
[1761433385588,0.61706332,111620.0,111610.0,0.3596]
[1761433389694,0.25626332,111620.0,111610.0,0.3596]
[1761433389895,0.61706332,111620.0,111610.0,0.3596]
[1761433390395,0.47572172,111620.0,111610.0,0.3596]
[1761433390694,0.11492172,111620.0,111610.0,0.3596]
[1761433390897,0.13911245,111620.0,111610.0,0.3596]
[1761433392197,0.11492172,111620.0,111610.0,0.3596]
[1761433392497,0.13911491,111620.0,111610.0,0.3596]
[1761433393196,0.11492172,111620.0,111610.0,0.3596]
[1761433399296,0.11488284,111620.0,111610.0,0.3596]
[1761433401399,0.13907916,111620.0,111610.0,0.3596]
[1761433413208,0.13907916,111620.0,111610.0,0.7204]
[1761433413612,0.13907916,111620.0,111610.0,0.3596]
[1761433416414,0.13907916,111620.0,111610.0,0.7204]
[1761433418509,0.13907916,111620.0,111610.0,0.3596]
[1761433418715,0.13907916,111620.0,111610.0,0.7204]
[1761433420619,0.13907916,111620.0,111610.0,0.9513291]
[1761433420818,0.12550916,111620.0,111610.0,0.9513291]
[1761433421210,0.04947955,111620.0,111610.0,1.3121291]
[1761433421413,0.02528323,111620.0,111610.0,1.3121291]
[1761433421917,0.00306433,111620.0,111610.0,1.3121291]
[1761433422518,0.08271632,111640.0,111630.0,0.04552]
[1761433422719,0.10477899,111640.0,111630.0,0.8616616]
[1761433423318,0.10477899,111640.0,111630.0,0.72032]
[1761433424721,0.10577899,111640.0,111630.0,0.72032]
[1761433426017,0.10577899,111640.0,111630.0,0.35952]
[1761433426215,0.10577899,111640.0,111630.0,0.72032]
[1761433427122,0.10577899,111640.0,111630.0,0.72930911]
[1761433427325,0.08158267,111640.0,111630.0,0.72930911]
[1761433428025,0.10577899,111640.0,111630.0,0.36850911]
[1761433428226,0.08158267,111640.0,111630.0,0.72930911]
[1761433428432,0.08158267,111640.0,111630.0,0.36850911]
[1761433429524,0.04478267,111640.0,111630.0,0.96022221]
[1761433429724,0.02306267,111640.0,111630.0,0.96022221]
[1761433430824,0.02206267,111640.0,111630.0,1.13665935]
[1761433434031,0.08271632,111660.0,111650.0,0.20440937]
[1761433434230,0.17271632,111660.0,111650.0,0.51836937]
[1761433434422,0.33160569,111660.0,111650.0,0.51836937]
[1761433436430,0.17271632,111660.0,111650.0,0.51836937]
[1761433436621,0.33160569,111660.0,111650.0,0.51836937]
[1761433438135,0.17271632,111660.0,111650.0,0.51836937]
[1761433438432,0.33160569,111660.0,111650.0,0.51836937]
[1761433440335,0.17271632,111660.0,111650.0,0.87916937]
[1761433440727,0.08177632,111670.0,111650.0,0.96872477]
[1761433440928,0.13177632,111670.0,111660.0,0.73551874]
[1761433441226,0.06994593,111680.0,111660.0,0.82506614]
[1761433441426,0.21177632,111680.0,111670.0,0.87783937]
[1761433441741,0.21177632,111680.0,111670.0,0.35815]
[1761433441928,0.21177632,111680.0,111670.0,0.51703937]
[1761433442536,0.21177632,111680.0,111670.0,0.52608714]
[1761433443030,0.21177632,111680.0,111670.0,0.88688714]
[1761433443237,0.18758,111680.0,111670.0,0.88688714]
[1761433445439,0.18758,111680.0,111670.0,0.87783937]
[1761433445939,0.20946164,111680.0,111670.0,0.87783937]
[1761433446438,0.36835101,111680.0,111670.0,0.87783937]
[1761433446639,0.36835101,111680.0,111670.0,0.88694523]
[1761433447635,0.36835101,111680.0,111670.0,0.87783937]
[1761433447935,0.06592164,111680.0,111670.0,0.87783937]
[1761433448939,0.02188164,111680.0,111670.0,0.96737877]
[1761433449837,0.02188164,111680.0,111670.0,0.97633355]
[1761433450140,0.11369593,111700.0,111690.0,0.04368]
[1761433450340,0.50557349,111700.0,111690.0,0.87744937]
[1761433450544,0.21735388,111700.0,111690.0,0.87744937]
[1761433450942,0.21735388,111700.0,111690.0,1.03633874]
[1761433451238,0.17187756,111700.0,111690.0,0.87744937]
[1761433452445,0.19315756,111700.0,111690.0,0.87744937]
[1761433453546,0.19298692,111700.0,111690.0,0.87744937]
[1761433454545,0.17170692,111700.0,111690.0,1.12586214]
[1761433454750,0.04348,111710.0,111690.0,1.12586214]
[1761433454938,0.06518144,111710.0,111700.0,0.40448]
[1761433455244,0.06518144,111710.0,111700.0,0.56336937]
[1761433455646,0.06518144,111710.0,111700.0,0.57611937]
[1761433461341,0.06518144,111710.0,111700.0,0.21531937]
[1761433461536,0.06518144,111710.0,111700.0,0.57611937]
[1761433462347,0.23714081,111710.0,111700.0,0.57611937]
[1761433462546,0.07825144,111710.0,111700.0,0.57611937]
[1761433462745,0.23714081,111710.0,111700.0,0.57611937]
[1761433463047,0.02170144,111710.0,111700.0,0.57611937]
[1761433463836,0.02170144,111710.0,111700.0,0.66563477]
[1761433465150,0.60028822,111730.0,111700.0,0.66563477]
[1761433465353,1.00198417,111730.0,111720.0,0.04368]
[1761433465553,0.64118417,111730.0,111720.0,0.20256937]
[1761433468246,0.64118417,111730.0,111720.0,0.21145051]
[1761433469152,0.67339378,111730.0,111720.0,0.21145051]
[1761433470741,0.64118417,111730.0,111720.0,0.21145051]
[1761433471147,0.67339378,111730.0,111720.0,0.20256937]
[1761433471452,0.67339378,111730.0,111720.0,0.04368]
[1761433471652,0.67339378,111730.0,111720.0,0.20256937]
[1761433472253,0.67339378,111730.0,111720.0,0.04368]
[1761433472454,0.67339378,111730.0,111720.0,0.20256937]
[1761433475358,0.64934493,111730.0,111720.0,0.20256937]
[1761433477852,0.64934493,111730.0,111720.0,0.04368]
[1761433478255,0.69768871,111730.0,111720.0,0.04368]
[1761433482056,0.6654791,111730.0,111720.0,0.04368]
[1761433482758,0.8554791,111730.0,111720.0,0.04368]
[1761433487663,0.8554791,111730.0,111720.0,0.20256937]
[1761433488662,1.2162791,111730.0,111720.0,0.20256937]
[1761433489570,0.8554791,111730.0,111720.0,0.20256937]
[1761433489773,1.2162791,111730.0,111720.0,0.20256937]
[1761433490072,0.5954791,111730.0,111720.0,0.20256937]
[1761433490671,0.43658973,111730.0,111720.0,0.04368]
[1761433492971,0.57764323,111730.0,111720.0,0.04368]
[1761433494065,0.43658973,111730.0,111720.0,0.04368]
[1761433494671,0.79738973,111730.0,111720.0,0.04368]
[1761433495273,0.43658973,111730.0,111720.0,0.04368]
[1761433495571,0.79738973,111730.0,111720.0,0.04368]
[1761433496374,0.43658973,111730.0,111720.0,0.04368]
[1761433497367,0.79738973,111730.0,111720.0,0.04368]
[1761433498667,0.48738973,111730.0,111720.0,0.04368]
[1761433498866,0.99738973,111730.0,111720.0,0.04368]
[1761433500176,0.63658973,111730.0,111720.0,0.04368]
[1761433500372,0.99738973,111730.0,111720.0,0.04368]
[1761433501172,0.63658973,111730.0,111720.0,0.04368]
[1761433501376,0.99738973,111730.0,111720.0,0.04368]
[1761433502075,0.77764323,111730.0,111720.0,0.04368]
[1761433502373,1.13844323,111730.0,111720.0,0.04368]
[1761433503380,0.77764323,111730.0,111720.0,0.04368]
[1761433503570,1.13844323,111730.0,111720.0,0.04368]
[1761433504574,1.13844323,111730.0,111720.0,0.02132]
[1761433505072,0.01322,111720.0,111710.0,0.86921998]
[1761433505278,0.1140996,111720.0,111710.0,0.86921998]
[1761433505471,0.13579555,111720.0,111710.0,0.86921998]
[1761433506479,0.10356149,111720.0,111710.0,0.86921998]
[1761433512987,0.10356149,111720.0,111710.0,0.50841998]
[1761433513282,0.10356149,111720.0,111710.0,0.86921998]
[1761433515585,0.10356149,111720.0,111710.0,0.95872758]
[1761433515980,0.09034149,111720.0,111710.0,0.95872758]
[1761433516180,0.06761149,111720.0,111710.0,0.95872758]
[1761433516481,0.04343595,111720.0,111710.0,0.95872758]
[1761433516786,0.06616595,111720.0,111710.0,0.95872758]
[1761433519696,0.06864554,111730.0,111720.0,0.05728]
[1761433519897,0.06864554,111730.0,111720.0,0.5591335]
[1761433519898,0.19864554,111730.0,111720.0,0.5591335]
[1761433522895,0.19864554,111730.0,111720.0,0.6486331]
[1761433523098,0.06864554,111730.0,111720.0,0.6486331]
[1761433526206,0.06864554,111730.0,111720.0,0.5591335]
[1761433527905,0.06864554,111730.0,111720.0,0.41808]
[1761433528105,0.06864554,111730.0,111720.0,0.5591335]
[1761433530005,0.08186554,111730.0,111720.0,0.35804]
[1761433530200,0.08186554,111730.0,111720.0,0.71884]
[1761433531406,0.08186554,111730.0,111720.0,0.73188]
[1761433531607,0.10357769,111730.0,111720.0,0.73188]
[1761433532303,0.05769,111730.0,111720.0,0.73188]
[1761433532507,0.10354626,111730.0,111720.0,0.73188]
[1761433537213,0.09032626,111730.0,111720.0,0.73188]
[1761433546517,0.09032626,111730.0,111720.0,0.41808]
[1761433546709,0.61548976,111730.0,111720.0,0.358]
[1761433547015,0.11363626,111730.0,111720.0,0.358]
[1761433547318,0.47443626,111730.0,111720.0,0.358]
[1761433549016,0.11363626,111730.0,111720.0,0.358]
[1761433549719,0.47443626,111730.0,111720.0,0.358]
[1761433550311,0.11363626,111730.0,111720.0,0.358]
[1761433550622,0.47443626,111730.0,111720.0,0.358]
[1761433551621,0.11363626,111730.0,111720.0,0.358]
[1761433552117,0.14587032,111730.0,111720.0,0.358]
[1761433552719,0.30456486,111730.0,111720.0,0.51669454]
[1761433553827,0.66536486,111730.0,111720.0,0.51669454]
[1761433554128,0.30456486,111730.0,111720.0,0.51669454]
[1761433554926,0.30456486,111730.0,111720.0,0.52992454]
[1761433555729,0.66536486,111730.0,111720.0,0.52992454]
[1761433556125,0.30456486,111730.0,111720.0,0.52992454]
[1761433556821,0.66536486,111730.0,111720.0,0.52992454]
[1761433557020,0.30456486,111730.0,111720.0,0.52992454]
[1761433558921,0.66536486,111730.0,111720.0,0.52992454]
[1761433561534,0.50667032,111730.0,111720.0,0.52992454]
[1761433561733,0.66536486,111730.0,111720.0,0.52992454]
[1761433562337,0.50667032,111730.0,111720.0,0.52992454]
[1761433562538,0.66536486,111730.0,111720.0,0.52992454]
[1761433565045,0.30456486,111730.0,111720.0,0.52992454]
[1761433565236,0.66536486,111730.0,111720.0,0.52992454]
[1761433568746,0.66536486,111730.0,111720.0,0.04424]
[1761433568949,0.6331308,111730.0,111720.0,0.33641]
[1761433569754,0.6331308,111730.0,111720.0,0.35901]
[1761433570349,0.64122079,111730.0,111720.0,0.35901]
[1761433570550,0.65733051,111730.0,111720.0,0.35901]
[1761433570756,0.68955444,111730.0,111720.0,0.35901]
[1761433571058,0.68955444,111730.0,111710.0,0.04366]
[1761433571059,0.05627,111720.0,111710.0,0.04366]
[1761433571251,0.82085218,111720.0,111710.0,0.33486]
[1761433571452,0.8183959,111720.0,111710.0,0.35746]
[1761433572258,0.84255003,111720.0,111710.0,0.35746]
[1761433575465,0.48175003,111720.0,111710.0,0.35746]
[1761433575658,0.84255003,111720.0,111710.0,0.35746]
[1761433575855,0.84255003,111720.0,111710.0,0.33486]
[1761433576058,0.84255003,111720.0,111710.0,0.35746]
[1761433576460,1.44255003,111720.0,111710.0,0.35746]
[1761433576857,0.84255003,111720.0,111710.0,0.35746]
[1761433578063,0.52516095,111720.0,111710.0,0.35746]
[1761433578258,0.84255003,111720.0,111710.0,0.35746]
[1761433578562,0.68385549,111720.0,111710.0,0.35746]
[1761433579664,0.32305549,111720.0,111710.0,0.35746]
[1761433579865,0.68385549,111720.0,111710.0,0.35746]
[1761433581253,0.52516095,111720.0,111710.0,0.35746]
[1761433581458,1.28385549,111720.0,111710.0,0.35746]
[1761433581767,1.22163086,111720.0,111710.0,0.52942454]
[1761433583069,0.86083086,111720.0,111710.0,0.52942454]
[1761433588268,1.22163086,111720.0,111710.0,0.52942454]
[1761433588472,1.25385549,111720.0,111710.0,0.52942454]
[1761433588861,1.25385549,111720.0,111710.0,0.51615454]
[1761433589369,1.25385549,111720.0,111710.0,0.35746]
[1761433590364,1.41255003,111720.0,111710.0,0.33486]
[1761433590572,0.05627,111700.0,111690.0,0.05453]
[1761433590773,0.07798219,111700.0,111690.0,0.04366]
[1761433591070,0.10212315,111700.0,111690.0,0.35746]
[1761433591270,0.13434778,111700.0,111690.0,0.35746]
[1761433591466,0.65384232,111700.0,111690.0,0.35746]
[1761433592174,0.62161769,111700.0,111690.0,0.35746]
[1761433594370,0.26081769,111700.0,111690.0,0.35746]
[1761433594576,0.62161769,111700.0,111690.0,0.35746]
[1761433595978,0.65161769,111700.0,111690.0,0.35746]
[1761433597674,0.96557769,111700.0,111670.0,0.54168761]
[1761433597884,0.20397454,111680.0,111670.0,0.58456761]
[1761433598077,0.20397454,111680.0,111670.0,0.53768761]
[1761433598383,0.05889,111680.0,111670.0,0.37899307]
[1761433598678,0.05889,111680.0,111670.0,0.53768761]
[1761433598679,0.04528,111680.0,111670.0,0.53768761]
[1761433599680,0.04528,111680.0,111670.0,0.53868761]
[1761433600672,0.04528,111680.0,111670.0,0.54268761]
[1761433607485,0.06716551,111680.0,111670.0,0.54268761]
[1761433608085,0.04528,111680.0,111670.0,0.54268761]
[1761433608385,0.06716546,111680.0,111670.0,0.54268761]
[1761433614690,0.06716546,111680.0,111670.0,0.38399307]
[1761433618189,0.06716546,111680.0,111670.0,0.07007307]
[1761433618391,0.06716546,111680.0,111670.0,0.38399307]
[1761433627300,0.10435642,111680.0,111670.0,0.38399307]
[1761433628693,0.88774861,111680.0,111670.0,0.005]
[1761433628996,0.9544868,111680.0,111670.0,0.005]
[1761433629301,0.05576,111660.0,111650.0,0.35741]
[1761433629495,0.46261136,111660.0,111650.0,0.35741]
[1761433629691,0.46261136,111660.0,111650.0,0.37055]
[1761433630296,0.43844546,111660.0,111650.0,0.37055]
[1761433631300,0.42539546,111660.0,111650.0,0.37949]
[1761433631600,0.06459546,111660.0,111650.0,0.37949]
[1761433631800,0.06659546,111660.0,111650.0,0.37949]
[1761433632596,0.04471,111660.0,111650.0,0.37949]
[1761433632794,0.42742272,111660.0,111650.0,0.37949]
[1761433633502,0.06662272,111660.0,111650.0,0.37949]
[1761433637704,0.42742272,111660.0,111650.0,0.37949]
[1761433637901,0.42742272,111660.0,111650.0,0.37055]
[1761433638098,0.44047272,111660.0,111650.0,0.37055]
[1761433639911,0.44047272,111660.0,111650.0,0.37929956]
[1761433643519,0.07967272,111660.0,111650.0,0.37929956]
[1761433643716,0.44047272,111660.0,111650.0,0.37929956]
[1761433644619,0.58164028,111660.0,111650.0,0.37929956]
[1761433645315,0.58164028,111660.0,111650.0,0.37055]
[1761433645821,0.58164028,111660.0,111650.0,0.35741]
[1761433647720,0.44047272,111660.0,111650.0,0.35741]
[1761433647924,0.58164028,111660.0,111650.0,0.35741]
[1761433648224,0.58164028,111660.0,111650.0,0.04345]
[1761433648526,0.58164028,111660.0,111650.0,0.35741]
[1761433648718,0.58164028,111660.0,111650.0,0.04345]
[1761433648924,0.58164028,111660.0,111650.0,0.35741]
[1761433649320,0.60164028,111660.0,111650.0,0.04345]
[1761433654426,0.24084028,111660.0,111650.0,0.04345]
[1761433654629,0.60164028,111660.0,111650.0,0.04345]
[1761433655221,0.62577787,111660.0,111650.0,0.04345]
[1761433655521,0.26497787,111660.0,111650.0,0.04345]
[1761433656026,0.62577787,111660.0,111650.0,0.04345]
[1761433658233,0.65799907,111660.0,111650.0,0.04345]
[1761433658530,0.63799907,111660.0,111650.0,0.04345]
[1761433659029,0.65799907,111660.0,111650.0,0.04345]
[1761433666137,0.27306148,111660.0,111650.0,0.04345]
[1761433666338,0.63386148,111660.0,111650.0,0.04345]
[1761433670143,0.49269392,111660.0,111650.0,0.04345]
[1761433672346,0.63386148,111660.0,111650.0,0.04345]
[1761433675859,0.27306148,111660.0,111650.0,0.04345]
[1761433676355,0.63386148,111660.0,111650.0,0.04345]
[1761433676756,0.65159278,111660.0,111650.0,0.04345]
[1761433678157,0.69993656,111660.0,111650.0,0.04345]
[1761433680358,0.65159278,111660.0,111650.0,0.04345]
[1761433685164,0.29079278,111660.0,111650.0,0.04345]
[1761433685364,0.65159278,111660.0,111650.0,0.04345]
[1761433685566,0.29079278,111660.0,111650.0,0.04345]
[1761433685766,0.65159278,111660.0,111650.0,0.04345]
[1761433686158,0.69993656,111660.0,111650.0,0.04345]
[1761433686654,0.65159278,111660.0,111650.0,0.04345]
[1761433687965,0.63159278,111660.0,111650.0,0.04345]
[1761433688965,0.67993656,111660.0,111650.0,0.04345]
[1761433692070,0.31913656,111660.0,111650.0,0.04345]
[1761433692367,0.67993656,111660.0,111650.0,0.04345]
[1761433692769,0.63159278,111660.0,111650.0,0.04345]
[1761433692970,0.67993656,111660.0,111650.0,0.04345]
[1761433697075,0.5210377,111660.0,111650.0,0.04345]
[1761433697373,0.67993656,111660.0,111650.0,0.04345]
[1761433699377,0.67993656,111660.0,111650.0,0.02135]
[1761433700873,0.05721,111650.0,111640.0,0.88520308]
[1761433701072,0.10331277,111650.0,111640.0,0.88520308]
[1761433702479,0.10731277,111650.0,111640.0,0.88520308]
[1761433702883,0.10731277,111650.0,111640.0,0.72630422]
[1761433703081,0.10731277,111650.0,111640.0,0.52440308]
[1761433703781,0.10731277,111650.0,111640.0,0.21036308]
[1761433703983,0.10731277,111650.0,111640.0,0.52432308]
[1761433704787,0.26621163,111650.0,111640.0,0.52432308]
[1761433705388,0.26621163,111650.0,111640.0,0.21036308]
[1761433705580,0.26621163,111650.0,111640.0,0.52432308]
[1761433713495,0.26621163,111650.0,111640.0,0.21036308]
[1761433713796,0.26621163,111650.0,111640.0,0.52432308]
[1761433715799,0.26621163,111650.0,111640.0,0.21036308]
[1761433716097,0.26621163,111650.0,111640.0,0.52432308]
[1761433716402,0.26621163,111650.0,111640.0,0.36542422]
[1761433717700,0.26621163,111650.0,111640.0,0.52432308]
[1761433719305,0.10731277,111650.0,111640.0,0.52432308]
[1761433719506,0.26621163,111650.0,111640.0,0.53717308]
[1761433723204,0.26621163,111650.0,111640.0,0.89797308]
[1761433724107,0.10731277,111650.0,111640.0,0.89797308]
[1761433725110,0.10731277,111650.0,111640.0,0.58401308]
[1761433725305,0.10731277,111650.0,111640.0,0.89797308]
[1761433727309,0.09423277,111650.0,111640.0,0.89797308]
[1761433728803,0.09423277,111650.0,111640.0,0.58401308]
[1761433729106,0.09423277,111650.0,111640.0,0.89797308]
[1761433729304,0.07240277,111650.0,111640.0,0.89797308]
[1761433729710,0.09563277,111650.0,111640.0,0.89797308]
[1761433733110,0.09563277,111650.0,111640.0,0.58401308]
[1761433733305,0.09563277,111650.0,111640.0,0.89797308]
[1761433733610,0.09563277,111650.0,111640.0,0.53717308]
[1761433733800,0.09563277,111650.0,111640.0,0.89797308]
[1761433736509,0.25453163,111650.0,111640.0,0.53717308]
[1761433736710,0.09563277,111650.0,111640.0,0.73907422]
[1761433737410,0.05010277,111650.0,111640.0,1.7111133]
[1761433737601,6.791e-05,111650.0,111640.0,1.48031191]
[1761433738207,6.791e-05,111650.0,111640.0,1.56987561]
[1761433739707,6.791e-05,111650.0,111640.0,1.42863792]
[1761433740009,6.791e-05,111650.0,111640.0,1.56987561]
[1761433742808,6.791e-05,111650.0,111640.0,1.56987571]
[1761433743810,6.791e-05,111650.0,111640.0,1.93067571]
[1761433747816,6.791e-05,111650.0,111640.0,1.20907571]
[1761433748010,6.791e-05,111650.0,111640.0,1.93067571]
[1761433748721,6.791e-05,111650.0,111640.0,1.20907571]
[1761433749024,6.791e-05,111650.0,111640.0,1.93067571]
[1761433749619,6.791e-05,111650.0,111640.0,1.20907571]
[1761433749820,6.791e-05,111650.0,111640.0,1.93067571]
[1761433751817,6.791e-05,111650.0,111640.0,1.20907571]
[1761433752216,6.791e-05,111650.0,111640.0,1.93067571]
[1761433752521,6.791e-05,111650.0,111640.0,1.37884493]
[1761433752718,6.791e-05,111650.0,111640.0,1.52008262]
[1761433755426,0.06930005,111670.0,111660.0,0.05687]
[1761433755628,0.09104849,111670.0,111660.0,0.87282769]
[1761433756628,0.09104849,111670.0,111660.0,0.73159]
[1761433759426,0.02174844,111670.0,111660.0,0.96237539]
[1761433771637,0.02174844,111670.0,111660.0,1.32317539]
[1761433772036,0.02174844,111670.0,111660.0,0.60157539]
[1761433772338,0.02174844,111670.0,111660.0,1.32317539]
[1761433775237,0.02174844,111670.0,111660.0,0.60157539]
[1761433775440,0.02174844,111670.0,111660.0,1.32317539]
[1761433775633,0.02174844,111670.0,111660.0,1.23362769]
[1761433776037,0.04427844,111670.0,111660.0,1.23362769]
[1761433776440,0.04427844,111670.0,111660.0,1.32317539]
[1761433777143,0.04427844,111670.0,111660.0,1.00925539]